bitfinex/quotes_SOLUSD_20220208
["timestamp","ask_amount","ask_price","bid_price","bid_amount"]
[1644326167494,15.42805549,112.68,112.61,42.88745561]
[1644326167691,13.3203,112.68,112.61,42.88745561]
[1644326168091,13.5703,112.68,112.58,12.79]
[1644326168293,13.3253,112.65,112.57,12.79]
[1644326168494,25.0283,112.65,112.56,10.438]
[1644326168698,27.13605549,112.65,112.56,4.438]
[1644326168992,4.44,112.64,112.57,34.39656812]
[1644326169194,48.8685,112.64,112.57,34.39656812]
[1644326169397,13.3286,112.62,112.57,34.39656812]
[1644326170896,13.3286,112.62,112.54,153.9124]
[1644326171099,13.3286,112.62,112.54,12.814]
[1644326171298,17.7696,112.62,112.52,12.814]
[1644326171499,17.7696,112.62,112.53,0.024]
[1644326171998,36.3148,112.62,112.52,47.12036628]
[1644326172197,36.5648,112.62,112.52,47.12036628]
[1644326172398,36.5648,112.62,112.53,0.024]
[1644326173799,36.3148,112.62,112.53,0.024]
[1644326173999,13.3286,112.62,112.53,0.024]
[1644326175000,13.3286,112.62,112.53,17.7934]
[1644326175203,24.7153,112.66,112.54,61.33271597]
[1644326175399,24.7153,112.66,112.54,65.77271597]
[1644326175700,24.7153,112.66,112.54,72.02271597]
[1644326175701,24.9653,112.66,112.54,72.02271597]
[1644326175899,53.9055,112.66,112.54,67.55871597]
[1644326176298,4.44,112.66,112.54,67.55871597]
[1644326176499,4.44,112.66,112.55,1.92153258]
[1644326176701,13.324,112.64,112.57,41.89716994]
[1644326177001,13.324,112.64,112.57,65.63516994]
[1644326177901,13.324,112.64,112.57,65.88516994]
[1644326178102,13.3227,112.66,112.57,85.20846994]
[1644326178304,113.1,112.67,112.57,85.20846994]
[1644326179201,113.1,112.67,112.57,245.10846994]
[1644326179399,113.1,112.67,112.57,249.54746994]
[1644326180101,113.1,112.67,112.57,302.82746994]
[1644326180507,113.1,112.67,112.58,1.92066517]
[1644326180704,113.1,112.67,112.61,13.3166]
[1644326180904,113.1,112.67,112.62,49.85243962]
[1644326181099,113.1,112.67,112.62,55.85243962]
[1644326181302,113.1,112.67,112.62,50.10243962]
[1644326182103,113.1,112.67,112.62,56.10243962]
[1644326182300,113.35,112.67,112.62,56.10243962]
[1644326182802,113.1,112.67,112.63,13.3164]
[1644326183003,113.1,112.67,112.64,48.20851716]
[1644326183202,0.03483715,112.7,112.64,48.20851716]
[1644326183401,126.4166,112.71,112.64,48.20851716]
[1644326184203,126.6666,112.71,112.64,48.20851716]
[1644326185908,123.1666,112.71,112.64,48.20851716]
[1644326187609,125.27435549,112.71,112.64,48.20851716]
[1644326188008,123.1666,112.71,112.64,48.20851716]
[1644326191016,4.437,112.7,112.64,48.20851716]
[1644326191213,13.3191,112.69,112.64,48.20851716]
[1644326192114,13.5691,112.69,112.64,48.20851716]
[1644326193435,15.67685549,112.69,112.64,48.20851716]
[1644326193737,13.5691,112.69,112.62,12.79]
[1644326194335,13.5691,112.69,112.6,26.1103]
[1644326194536,15.71169264,112.69,112.6,26.1103]
[1644326194737,15.71169264,112.69,112.61,48.3609781]
[1644326195540,2.49394049,112.71,112.62,53.28]
[1644326195740,16.92280615,112.74,112.63,88.50221205]
[1644326195741,2.10775549,112.72,112.63,88.50221205]
[1644326195940,2.49394049,112.77,112.64,12.79]
[1644326196140,2.49394049,112.77,112.65,69.7373476]
[1644326196342,17.7466,112.77,112.67,13.3111]
[1644326196539,13.3106,112.77,112.68,48.85390881]
[1644326196740,17.7446,112.77,112.68,48.85390881]
[1644326197843,13.3106,112.77,112.68,48.85390881]
[1644326199040,17.7446,112.77,112.68,62.16450881]
[1644326199243,17.9946,112.77,112.68,62.16450881]
[1644326200142,131.0946,112.77,112.68,62.16450881]
[1644326200342,126.6606,112.77,112.68,62.16450881]
[1644326201942,126.6606,112.77,112.68,62.41450881]
[1644326204543,126.6606,112.77,112.68,62.16450881]
[1644326204746,139.48138431,112.77,112.68,12.79]
[1644326204948,0.30967523,112.72,112.66,17.224]
[1644326205148,13.3163,112.72,112.64,37.4477]
[1644326205748,13.3163,112.72,112.65,37.55190655]
[1644326208153,13.5663,112.72,112.65,37.55190655]
[1644326209256,13.3163,112.72,112.65,37.55190655]
[1644326213056,13.5663,112.72,112.65,37.55190655]
[1644326216559,13.3163,112.72,112.65,37.55190655]
[1644326220266,18.0033,112.72,112.65,37.55190655]
[1644326221469,13.5663,112.72,112.65,37.55190655]
[1644326222869,18.0033,112.72,112.65,37.55190655]
[1644326223074,17.7533,112.72,112.65,37.55190655]
[1644326224173,25.7933,112.72,112.65,37.55190655]
[1644326224473,26.0433,112.72,112.65,37.55190655]
[1644326224673,26.0433,112.72,112.62,60.7949]
[1644326224877,13.3205,112.69,112.62,48.0049]
[1644326225073,13.6340005,112.69,112.62,48.0049]
[1644326225474,13.6340005,112.69,112.6,12.79]
[1644326225674,13.6340005,112.69,112.61,45.34832342]
[1644326226774,2.10775549,112.68,112.61,45.34832342]
[1644326226979,13.3225,112.66,112.61,45.34832342]
[1644326231486,12.8225,112.66,112.61,45.34832342]
[1644326231684,13.0725,112.66,112.61,45.34832342]
[1644326233484,0.25,112.66,112.61,45.34832342]
[1644326233686,13.3208,112.67,112.61,45.34832342]
[1644326234486,12.8208,112.67,112.61,45.34832342]
[1644326235287,13.0708,112.67,112.61,45.34832342]
[1644326237895,12.8208,112.67,112.61,45.34832342]
[1644326239194,13.0708,112.67,112.61,45.34832342]
[1644326240398,13.0708,112.67,112.6,13.3209]
[1644326240598,0.30339507,112.65,112.58,47.7193]
[1644326240797,13.3246,112.64,112.58,47.7193]
[1644326240999,15.43235549,112.64,112.55,76.1647]
[1644326241199,15.43235549,112.64,112.54,12.79]
[1644326241398,19.87235549,112.64,112.55,46.81397141]
[1644326241599,2.10775549,112.63,112.55,46.81397141]
[1644326241796,2.10775549,112.63,112.55,60.39097141]
[1644326241997,48.8639,112.64,112.55,60.39097141]
[1644326242219,2.10775549,112.63,112.55,60.39097141]
[1644326242616,44.4239,112.64,112.55,60.14097141]
[1644326242816,13.3272,112.61,112.55,46.81397141]
[1644326243120,23.47195549,112.61,112.55,46.81397141]
[1644326244920,15.43495549,112.61,112.55,46.81397141]
[1644326246320,15.43495549,112.61,112.54,0.024]
[1644326246518,15.43495549,112.61,112.53,47.3888]
[1644326246718,15.43495549,112.61,112.54,0.024]
[1644326246921,19.87595549,112.61,112.54,0.024]
[1644326247124,19.87595549,112.61,112.53,47.3648]
[1644326247319,19.87595549,112.61,112.53,93.9420517]
[1644326248123,20.12595549,112.61,112.53,93.9420517]
[1644326248332,15.68495549,112.61,112.53,93.9420517]
[1644326249425,20.12595549,112.61,112.53,93.9420517]
[1644326249624,20.12595549,112.61,112.51,0.024]
[1644326249826,0.3160284,112.59,112.51,0.024]
[1644326250027,13.3353,112.57,112.51,0.024]
[1644326250227,37.4583,112.57,112.5,0.024]
[1644326251927,41.9003,112.57,112.5,0.024]
[1644326252527,42.20827738,112.57,112.5,0.024]
[1644326252728,44.31603287,112.57,112.5,0.024]
[1644326253531,0.31618971,112.53,112.47,0.024]
[1644326253731,13.3396,112.52,112.47,0.024]
[1644326253929,15.44735549,112.52,112.45,0.024]
[1644326254129,13.3396,112.52,112.45,0.024]
[1644326254328,13.5896,112.52,112.45,37.93435954]
[1644326254532,13.5896,112.52,112.45,37.95835954]
[1644326255131,13.5896,112.52,112.45,39.87525587]
[1644326255331,0.25,112.52,112.45,39.87525587]
[1644326255532,48.9994,112.57,112.45,58.66525587]
[1644326255734,48.9994,112.57,112.46,28.678]
[1644326255935,48.9994,112.57,112.47,45.03188175]
[1644326256133,48.9994,112.57,112.48,0.024]
[1644326256732,13.3352,112.55,112.49,48.3928842]
[1644326256932,48.9994,112.57,112.49,48.4168842]
[1644326257133,44.444,112.59,112.49,50.33879978]
[1644326257332,29.97315549,112.6,112.5,12.814]
[1644326257333,23.4234,112.6,112.5,12.814]
[1644326257535,23.4234,112.6,112.51,48.49825094]
[1644326257732,2.10775549,112.59,112.51,48.49825094]
[1644326257932,19.88005549,112.59,112.51,48.49825094]
[1644326258332,20.13005549,112.59,112.51,48.49825094]
[1644326258733,20.13005549,112.59,112.51,0.024]
[1644326258933,0.30574465,112.58,112.51,0.024]
[1644326259134,13.3368,112.56,112.49,0.024]
[1644326259434,22.6748,112.56,112.49,0.024]
[1644326259633,2.10775549,112.55,112.49,0.024]
[1644326259833,2.10775549,112.55,112.48,39.18431607]
[1644326260036,2.10775549,112.55,112.48,39.20831607]
[1644326260835,13.3375,112.54,112.48,39.18431607]
[1644326261436,13.3375,112.54,112.47,0.024]
[1644326261636,25.57025549,112.54,112.47,0.024]
[1644326261835,25.57025549,112.54,112.46,60.5214]
[1644326261836,25.88715027,112.54,112.46,47.7314]
[1644326262035,30.33115027,112.54,112.46,47.7314]
[1644326262735,30.33115027,112.54,112.46,0.024]
[1644326264340,30.26425549,112.54,112.46,0.024]
[1644326264542,30.57439822,112.54,112.46,0.024]
[1644326264742,22.7556,112.53,112.44,0.024]
[1644326264940,13.3431,112.51,112.44,0.024]
[1644326265142,23.9971,112.51,112.44,0.024]
[1644326265344,2.41091543,112.5,112.44,0.024]
[1644326265544,0.3142234,112.47,112.44,0.024]
[1644326265743,6.06439994,112.46,112.4,0.024]
[1644326265942,13.3488,112.45,112.4,0.024]
[1644326266145,13.3488,112.45,112.39,38.21272363]
[1644326266544,24.0224234,112.47,112.39,38.21272363]
[1644326266742,2.10775549,112.49,112.39,38.21272363]
[1644326266942,15.45185549,112.49,112.4,0.024]
[1644326268368,13.3441,112.49,112.4,0.024]
[1644326268544,13.3441,112.49,112.41,37.16841015]
[1644326269744,2.10775549,112.48,112.41,37.16841015]
[1644326269946,15.45265549,112.48,112.41,37.16841015]
[1644326270345,23.0521,112.5,112.41,37.41841015]
[1644326270645,23.0521,112.5,112.42,0.024]
[1644326271448,25.15985549,112.5,112.42,0.024]
[1644326271648,25.40985549,112.5,112.42,0.024]
[1644326271848,38.75275549,112.5,112.42,0.024]
[1644326272048,38.75275549,112.5,112.41,0.024]
[1644326272249,4.446,112.49,112.41,0.024]
[1644326272648,2.10775549,112.48,112.41,0.024]
[1644326273050,13.3467,112.47,112.41,0.024]
[1644326273251,13.5967,112.47,112.41,0.024]
[1644326274653,13.5967,112.47,112.39,22.5654]
[1644326274953,15.70445549,112.47,112.39,22.5654]
[1644326275355,0.30698919,112.45,112.39,0.024]
[1644326275554,0.30698919,112.45,112.38,0.024]
[1644326275756,13.3496,112.44,112.38,0.024]
[1644326275974,13.3496,112.44,112.37,41.87288724]
[1644326276175,13.3496,112.44,112.37,41.89688724]
[1644326276577,13.3496,112.44,112.37,0.024]
[1644326276775,13.3496,112.44,112.36,18.814]
[1644326277576,13.3496,112.44,112.37,41.74370493]
[1644326277776,13.3496,112.44,112.37,41.76770493]
[1644326279083,13.3496,112.44,112.37,0.024]
[1644326279084,15.45735549,112.44,112.37,0.024]
[1644326279285,15.45735549,112.44,112.36,12.79]
[1644326279480,23.46935549,112.44,112.35,0.024]
[1644326280079,23.71935549,112.44,112.35,0.024]
[1644326280879,47.72975549,112.44,112.35,0.024]
[1644326281485,0.3160197,112.39,112.35,0.024]
[1644326281683,0.3160197,112.39,112.32,0.024]
[1644326281684,8.6850197,112.39,112.32,0.024]
[1644326281880,10.79277519,112.39,112.32,0.024]
[1644326282483,13.357,112.38,112.32,0.024]
[1644326283289,15.46475549,112.38,112.3,22.9086]
[1644326284083,15.46475549,112.38,112.3,66.56767304]
[1644326284883,15.46475549,112.38,112.3,43.68307304]
[1644326285583,15.71475549,112.38,112.3,43.68307304]
[1644326286386,15.71475549,112.38,112.3,0.024]
[1644326286787,13.36,112.35,112.3,0.024]
[1644326286985,4.45,112.37,112.28,24.61564318]
[1644326287189,2.10775549,112.41,112.28,42.77964318]
[1644326287384,18.4651232,112.43,112.32,35.92475427]
[1644326287385,37.5727,112.43,112.32,35.92475427]
[1644326287585,29.2317,112.43,112.33,0.024]
[1644326287788,24.7827,112.43,112.33,0.024]
[1644326287988,13.353,112.41,112.33,14.72253611]
[1644326288188,13.353,112.41,112.34,48.51470673]
[1644326288387,24.7827,112.43,112.34,48.51470673]
[1644326288388,24.7827,112.43,112.34,66.28920673]
[1644326288588,15.82040878,112.45,112.35,1.93253611]
[1644326288788,15.82040878,112.45,112.36,41.5368349]
[1644326288988,13.3483,112.45,112.36,43.46927984]
[1644326289191,60.31250878,112.48,112.37,0.024]
[1644326289395,15.82040878,112.48,112.37,12.814]
[1644326289589,15.82040878,112.48,112.39,13.3439]
[1644326289889,32.02273191,112.48,112.4,0.024]
[1644326290089,45.36703191,112.48,112.38,0.024]
[1644326290688,45.61703191,112.48,112.38,41.12790759]
[1644326290891,45.61703191,112.48,112.39,0.024]
[1644326291091,4.447,112.47,112.39,0.024]
[1644326291292,13.3487,112.45,112.39,0.024]
[1644326291492,13.66459453,112.45,112.38,0.024]
[1644326291692,6.55575549,112.44,112.35,0.024]
[1644326291897,30.51355549,112.44,112.35,0.024]
[1644326292093,2.10775549,112.43,112.35,0.024]
[1644326292295,2.10775549,112.43,112.34,43.02166071]
[1644326292495,2.10775549,112.43,112.35,0.024]
[1644326292695,13.353,112.42,112.35,0.024]
[1644326292895,13.353,112.42,112.34,49.02166071]
[1644326293095,2.10775549,112.41,112.34,49.02166071]
[1644326294397,2.10775549,112.41,112.34,6.0]
[1644326294595,2.10775549,112.41,112.33,0.024]
[1644326294896,13.3535,112.4,112.33,0.024]
[1644326295299,2.10775549,112.39,112.33,0.024]
[1644326295499,2.10775549,112.39,112.31,46.58066002]
[1644326295699,2.10775549,112.39,112.32,0.024]
[1644326295905,13.3583,112.38,112.31,46.55666002]
[1644326296100,13.3583,112.38,112.31,42.10866002]
[1644326296302,13.6083,112.38,112.31,42.10866002]
[1644326296500,13.6083,112.38,112.31,61.18396002]
[1644326297101,13.6083,112.38,112.31,55.18396002]
[1644326297901,13.6083,112.38,112.31,55.20796002]
[1644326299306,13.3583,112.38,112.31,55.20796002]
[1644326300405,13.3583,112.38,112.31,61.20796002]
[1644326300606,13.3583,112.38,112.31,55.20796002]
[1644326300810,13.3583,112.38,112.31,13.0993]
[1644326301905,13.3583,112.38,112.31,57.97495696]
[1644326302129,13.3583,112.38,112.31,13.0993]
[1644326302305,13.3583,112.38,112.31,13.0753]
[1644326303105,13.6083,112.38,112.32,48.28644495]
[1644326304613,13.6083,112.38,112.31,13.0753]
[1644326305811,13.6083,112.38,112.32,34.4987195]
[1644326308012,17.8031,112.4,112.32,34.4987195]
[1644326308213,1.25380002,112.42,112.33,14.70335952]
[1644326308415,23.5188,112.43,112.34,43.82228107]
[1644326308712,1.25380002,112.44,112.35,0.024]
[1644326308913,1.25380002,112.45,112.35,0.024]
[1644326309112,13.3501,112.43,112.35,0.024]
[1644326311915,13.6001,112.43,112.35,0.024]
[1644326312314,13.6001,112.43,112.35,13.3736]
[1644326312517,0.25,112.43,112.36,47.76549311]
[1644326312715,13.3477,112.44,112.36,47.78949311]
[1644326312914,13.3477,112.44,112.36,45.87620276]
[1644326313714,13.3477,112.44,112.36,59.22390276]
[1644326314517,13.3477,112.44,112.36,45.87620276]
[1644326314715,15.45545549,112.44,112.36,45.87620276]
[1644326314914,4.448,112.43,112.36,0.024]
[1644326315120,13.3513,112.41,112.36,0.024]
[1644326315316,13.6013,112.41,112.34,0.024]
[1644326315523,15.70905549,112.41,112.34,0.024]
[1644326316116,15.70905549,112.41,112.32,46.40823939]
[1644326316317,15.70905549,112.41,112.33,0.024]
[1644326317146,13.3513,112.41,112.33,0.024]
[1644326317722,15.45905549,112.41,112.33,0.024]
[1644326317918,13.3513,112.41,112.33,0.024]
[1644326318319,13.6013,112.41,112.33,0.024]
[1644326318522,13.3568,112.38,112.33,0.024]
[1644326318718,13.3568,112.38,112.31,53.37060205]
[1644326318919,13.3568,112.38,112.31,13.0753]
[1644326319119,13.3568,112.38,112.31,19.0993]
[1644326319318,13.3568,112.38,112.31,19.0753]
[1644326320225,13.6068,112.38,112.31,13.0993]
[1644326321119,13.6068,112.38,112.31,19.0993]
[1644326321621,13.6068,112.38,112.31,13.0993]
[1644326323022,13.6068,112.38,112.31,13.0753]
[1644326323922,13.6068,112.38,112.31,55.28516317]
[1644326324526,13.3568,112.38,112.31,13.0753]
[1644326325550,13.3568,112.38,112.31,59.76907968]
[1644326326852,13.3568,112.38,112.31,13.0753]
[1644326328059,13.6068,112.38,112.31,13.0993]
[1644326331758,13.3568,112.38,112.32,35.8356713]
[1644326333561,13.3568,112.38,112.31,13.0753]
[1644326333759,13.3568,112.38,112.31,19.0753]
[1644326333960,13.3568,112.38,112.31,13.0993]
[1644326334660,13.3568,112.38,112.31,13.0753]
[1644326334858,13.3568,112.38,112.31,13.0993]
[1644326335260,13.6068,112.38,112.31,13.0993]
[1644326335572,15.71455549,112.38,112.31,13.0753]
[1644326336961,16.96835551,112.38,112.31,13.0753]
[1644326337462,14.86060002,112.38,112.31,13.0753]
[1644326337861,14.86060002,112.38,112.29,0.024]
[1644326338064,4.45,112.37,112.29,0.024]
[1644326338261,13.3611,112.35,112.29,0.024]
[1644326338463,13.3611,112.35,112.28,14.08094318]
[1644326338862,13.3611,112.35,112.28,0.44514318]
[1644326339063,36.984,112.35,112.28,0.44514318]
[1644326339665,38.23780002,112.35,112.28,0.44514318]
[1644326339864,13.3649,112.33,112.28,0.44514318]
[1644326340064,37.0425,112.33,112.28,0.44514318]
[1644326343768,37.2925,112.33,112.28,0.44514318]
[1644326344874,37.0425,112.33,112.28,0.44514318]
[1644326347469,37.2925,112.33,112.28,0.44514318]
[1644326354379,37.0425,112.33,112.28,0.44514318]
[1644326354584,37.0425,112.33,112.29,44.69007624]
[1644326354780,13.3649,112.33,112.29,44.69007624]
[1644326354984,13.3649,112.33,112.29,46.59977818]
[1644326355179,44.5336,112.36,112.29,46.59977818]
[1644326355381,23.80230002,112.38,112.29,57.13777818]
[1644326355583,22.5485,112.38,112.29,83.28537818]
[1644326356182,1.25380002,112.4,112.29,83.28537818]
[1644326356381,1.25380002,112.4,112.3,23.0647]
[1644326356582,13.3553,112.37,112.31,13.3789]
[1644326356783,13.3553,112.37,112.32,0.024]
[1644326357282,13.3553,112.37,112.31,13.3549]
[1644326357482,13.3553,112.37,112.31,26.1449]
[1644326357683,13.3541,112.38,112.31,26.3949]
[1644326357884,13.3541,112.38,112.32,0.024]
[1644326358088,13.6041,112.38,112.32,26.1681]
[1644326358286,13.6041,112.38,112.33,48.42839783]
[1644326358510,13.6041,112.38,112.32,12.79]
[1644326361307,13.6041,112.38,112.31,42.50964623]
[1644326361710,13.3526,112.39,112.32,12.79]
[1644326361912,13.3526,112.39,112.32,24.09]
[1644326362110,1.25380002,112.42,112.32,24.34]
[1644326362312,1.25380002,112.43,112.34,13.3515]
[1644326362510,1.25380002,112.43,112.35,45.76790377]
[1644326362913,13.3515,112.4,112.33,35.4145]
[1644326364114,13.3515,112.4,112.33,73.69245306]
[1644326364315,17.8005,112.4,112.33,73.69245306]
[1644326364514,17.8005,112.4,112.33,35.4145]
[1644326364717,17.8005,112.4,112.33,12.79]
[1644326365016,19.05430002,112.4,112.33,12.79]
[1644326365222,19.05430002,112.4,112.31,24.2515]
[1644326365420,19.05430002,112.4,112.31,24.2755]
[1644326365618,19.05430002,112.4,112.31,66.5847458]
[1644326366015,37.47190002,112.4,112.31,66.5607458]
[1644326366217,37.72190002,112.4,112.31,66.5607458]
[1644326366815,37.72190002,112.4,112.31,66.5847458]
[1644326367620,37.72190002,112.4,112.31,66.5607458]
[1644326367917,37.72190002,112.4,112.31,66.5847458]
[1644326368117,42.17190002,112.4,112.31,24.2755]
[1644326368617,42.17190002,112.4,112.31,0.024]
[1644326368819,1.25380002,112.39,112.3,0.024]
[1644326369017,13.3594,112.37,112.3,0.024]
[1644326369719,13.6094,112.37,112.3,0.024]
[1644326374921,13.3594,112.37,112.3,0.024]
[1644326375622,37.95010002,112.37,112.3,0.024]
[1644326376222,38.20010002,112.37,112.3,0.024]
[1644326378724,51.84185551,112.37,112.3,0.024]
[1644326379124,1.25380002,112.36,112.3,0.024]
[1644326379325,17.815,112.35,112.28,0.46914318]
[1644326379524,44.00895549,112.35,112.28,0.46914318]
[1644326379829,45.26275551,112.35,112.28,0.46914318]
[1644326380025,40.81275551,112.35,112.28,0.46914318]
[1644326380226,2.10775549,112.34,112.28,0.46914318]
[1644326380429,2.10775549,112.34,112.28,0.44514318]
[1644326381825,13.3647,112.33,112.28,0.44514318]
[1644326383031,13.6147,112.33,112.28,0.44514318]
[1644326386441,13.6147,112.33,112.29,42.71420899]
[1644326386636,0.25,112.33,112.29,53.87620899]
[1644326386838,24.1031,112.39,112.3,1.90970194]
[1644326386839,1.25380002,112.38,112.3,1.90970194]
[1644326387938,1.25380002,112.38,112.29,42.71420899]
[1644326388142,1.25380002,112.38,112.29,67.65570899]
[1644326388346,13.3572,112.35,112.29,81.01290899]
[1644326388546,13.3572,112.35,112.29,67.65570899]
[1644326390442,13.6072,112.35,112.29,67.65570899]
[1644326393761,13.6072,112.35,112.28,13.25914318]
[1644326393961,15.71495549,112.35,112.28,0.46914318]
[1644326394162,38.24765549,112.35,112.28,0.46914318]
[1644326394361,36.1399,112.35,112.28,0.46914318]
[1644326394760,36.1399,112.35,112.28,0.44514318]
[1644326394960,35.8899,112.35,112.28,0.46914318]
[1644326396262,37.14370002,112.35,112.28,0.46914318]
[1644326396460,39.25145551,112.35,112.28,0.46914318]
[1644326398763,39.50145551,112.35,112.28,0.46914318]
[1644326399165,4.45,112.34,112.28,0.44514318]
[1644326399363,13.364,112.33,112.28,0.44514318]
[1644326402380,13.614,112.33,112.28,0.44514318]
[1644326402582,2.10775549,112.32,112.27,0.024]
[1644326402784,0.3130705,112.3,112.27,0.024]
[1644326402985,3.03219997,112.29,112.27,0.024]
[1644326403181,6.06439994,112.29,112.25,0.024]
[1644326403389,9.42595545,112.29,112.22,0.024]
[1644326403585,29.1443,112.28,112.22,0.024]
[1644326403783,13.373,112.26,112.18,23.3151]
[1644326403982,4.455,112.25,112.14,4.454]
[1644326404180,6.56275549,112.25,112.14,4.454]
[1644326404383,5.70880002,112.25,112.14,4.454]
[1644326404582,2.10775549,112.24,112.14,4.454]
[1644326404779,2.10775549,112.24,112.15,41.26074077]
[1644326404780,8.62798549,112.24,112.15,41.26074077]
[1644326405083,9.88178551,112.24,112.15,41.26074077]
[1644326405381,6.52023,112.24,112.15,41.26074077]
[1644326405583,13.3759,112.22,112.15,41.26074077]
[1644326406381,6.52023,112.24,112.15,41.26074077]
[1644326406581,6.52023,112.24,112.15,45.96674077]
[1644326406887,19.89263,112.24,112.16,12.79]
[1644326407081,19.89263,112.24,112.17,48.27828042]
[1644326407281,13.3724,112.24,112.17,48.52828042]
[1644326407782,13.6224,112.24,112.17,48.52828042]
[1644326408182,13.3724,112.24,112.17,48.52828042]
[1644326408384,38.0615,112.26,112.17,60.00628042]
[1644326408582,13.3702,112.26,112.17,60.00628042]
[1644326408783,24.2178,112.28,112.18,4.455]
[1644326408983,24.86770002,112.32,112.19,102.08238956]
[1644326409187,6.52023,112.31,112.2,24.0953]
[1644326409389,6.52023,112.31,112.21,59.74484387]
[1644326409688,6.52023,112.31,112.24,38.20536474]
[1644326409888,6.52023,112.31,112.24,62.01536474]
[1644326410783,19.88403,112.31,112.24,62.01536474]
[1644326410983,19.88403,112.31,112.24,50.99536474]
[1644326411186,20.13403,112.31,112.24,50.99536474]
[1644326411585,2.9596551,112.3,112.24,50.99536474]
[1644326412285,20.13403,112.31,112.24,48.03570964]
[1644326412686,22.24178549,112.31,112.24,48.03570964]
[1644326412887,22.24178549,112.31,112.24,12.79]
[1644326413088,22.24178549,112.31,112.22,12.79]
[1644326413292,22.24178549,112.31,112.19,23.9855]
[1644326413489,28.234,112.3,112.19,23.9855]
[1644326413692,13.3702,112.27,112.19,23.9855]
[1644326413890,13.3702,112.27,112.2,38.61627276]
[1644326414395,15.47795549,112.27,112.2,38.61627276]
[1644326414989,13.3702,112.27,112.2,38.61627276]
[1644326415591,15.47795549,112.27,112.2,38.61627276]
[1644326415790,15.47795549,112.27,112.18,35.9674]
[1644326415991,19.93295549,112.27,112.18,35.9674]
[1644326416191,20.18295549,112.27,112.18,35.9674]
[1644326416393,20.18295549,112.27,112.18,12.79]
[1644326416691,13.3764,112.23,112.16,57.92722036]
[1644326416892,13.3764,112.23,112.16,45.13722036]
[1644326417692,13.3764,112.23,112.16,57.92722036]
[1644326418913,15.48415549,112.23,112.16,57.92722036]
[1644326419311,13.3764,112.23,112.16,57.92722036]
[1644326420012,2.10775549,112.23,112.16,57.92722036]
[1644326420212,2.10775549,112.23,112.16,45.13722036]
[1644326420817,17.67428314,112.23,112.16,45.13722036]
[1644326421212,31.04968314,112.23,112.16,45.13722036]
[1644326421716,39.78568314,112.23,112.15,0.024]
[1644326421914,4.456,112.22,112.13,0.024]
[1644326422316,2.10775549,112.21,112.13,0.024]
[1644326422714,2.10775549,112.21,112.13,44.56207463]
[1644326422914,24.9017,112.22,112.13,44.56207463]
[1644326423114,24.9017,112.22,112.14,0.024]
[1644326424619,2.10775549,112.21,112.14,0.024]
[1644326424820,13.3817,112.2,112.13,44.56207463]
[1644326425218,15.48945549,112.2,112.13,44.53807463]
[1644326426316,15.73945549,112.2,112.13,44.53807463]
[1644326427017,2.35775549,112.2,112.13,44.53807463]
[1644326428218,2.10775549,112.2,112.13,44.53807463]
[1644326428720,24.6517,112.22,112.13,46.44810797]
[1644326428919,5.71080002,112.25,112.13,70.76120797]
[1644326429218,23.7919,112.26,112.14,12.79]
[1644326429417,23.7919,112.26,112.15,38.44904737]
[1644326429622,23.7919,112.26,112.15,38.47304737]
[1644326430217,24.0419,112.26,112.15,38.47304737]
[1644326430417,25.89965549,112.26,112.15,38.47304737]
[1644326430618,25.89965549,112.26,112.15,40.38311356]
[1644326430819,23.7919,112.26,112.15,38.47304737]
[1644326431026,3.36155551,112.25,112.15,38.47304737]
[1644326431222,5.70980002,112.24,112.15,38.47304737]
[1644326431421,32.22659775,112.24,112.15,38.47304737]
[1644326431621,2.10775549,112.23,112.15,38.47304737]
[1644326431921,13.3791,112.22,112.15,38.47304737]
[1644326432328,2.10775549,112.21,112.15,38.47304737]
[1644326432525,2.10775549,112.21,112.15,38.44904737]
[1644326433632,16.32452313,112.23,112.15,38.44904737]
[1644326433827,1.25380002,112.25,112.16,1.91006619]